fUSD/lending_fUSD_20240116
["ID","MTS","AMOUNT","RATE_DAILY","PERIOD"]
[311826303,1705439458186,-500.0,0.00032876,2]
[311826304,1705439458198,-500.0,0.00032876,2]
[311826305,1705439458208,-1499.62,0.00032876,2]
[311826306,1705439458217,-166.25920755,0.00032876,2]
[311826307,1705439458229,-500.0,0.00032876,2]
[311826308,1705439458239,-495.81084927,0.00032876,2]
[311826309,1705439458250,-500.0,0.00032876,2]
[311826310,1705439458260,-500.0,0.00032876,2]
[311826311,1705439458271,-500.67660856,0.00032876,2]
[311826312,1705439458281,-500.0,0.00032876,2]
[311826313,1705439458291,-1565.92,0.00032876,2]
[311826314,1705439458300,-793.83,0.00032876,2]
[311826315,1705439458310,-411.98996367,0.00032876,2]
[311826316,1705439458320,-500.0,0.00032876,2]
[311826317,1705439458331,-1371.22,0.00032876,2]
[311826318,1705439458340,-500.0,0.00032876,2]
[311826319,1705439458350,-500.0,0.00032876,2]
[311826320,1705439458360,-1117.76,0.00032876,2]
[311826321,1705439458370,-1187.17,0.00032876,2]
[311826322,1705439458379,-500.0,0.00032876,2]
[311826323,1705439458389,-500.0,0.00032876,2]
[311826324,1705439458399,-500.0,0.00032876,2]
[311826325,1705439458408,-500.0,0.00032876,2]
[311826326,1705439458418,-500.0,0.00032876,2]
[311826327,1705439458428,-500.0,0.00032876,2]
[311826328,1705439458438,-500.0,0.00032876,2]
[311826329,1705439458448,-500.0,0.00032876,2]
[311826330,1705439458458,-500.66230393,0.00032876,2]
[311826331,1705439458467,-1269.68,0.00032876,2]
[311826332,1705439458478,-500.0,0.00032876,2]
[311826333,1705439458489,-500.0,0.00032876,2]
[311826334,1705439458500,-500.0,0.00032876,2]
[311826335,1705439458514,-500.0,0.00032876,2]
[311826336,1705439458524,-500.0,0.00032876,2]
[311826337,1705439458535,-2212.68,0.00032876,2]
[311826338,1705439458544,-500.0,0.00032876,2]
[311826339,1705439458556,-500.0,0.00032876,2]
[311826340,1705439458566,-500.0,0.00032876,2]
[311826341,1705439458577,-500.0,0.00032876,2]
[311826342,1705439458587,-500.0,0.00032876,2]
[311826343,1705439458597,-500.0,0.00032876,2]
[311826344,1705439458607,-1747.38,0.00032876,2]
[311826345,1705439458618,-500.0,0.00032876,2]
[311826346,1705439458628,-1032.6,0.00032876,2]
[311826347,1705439458637,-744.51,0.00032876,2]
[311826348,1705439458647,-500.0,0.00032876,2]
[311826349,1705439458657,-995.94,0.00032876,2]
[311826350,1705439458667,-504.11421743,0.00032876,2]
[311826351,1705439458677,-500.0,0.00032876,2]
[311826352,1705439458690,-500.0,0.00032876,2]
[311826353,1705439458702,-500.0,0.00032876,2]
[311826354,1705439458711,-610.02,0.00032876,2]
[311826355,1705439458722,-694.6,0.00032876,2]
[311826356,1705439458734,-500.0,0.00032876,2]
[311826357,1705439458744,-500.0,0.00032876,2]
[311826358,1705439458754,-500.0,0.00032876,2]
[311826359,1705439458764,-504.96,0.00032876,2]
[311826360,1705439458774,-500.0,0.00032876,2]
[311826361,1705439458784,-500.0,0.00032876,2]
[311826362,1705439458793,-500.0,0.00032876,2]
[311826363,1705439458803,-500.0,0.00032876,2]
[311826364,1705439458812,-500.0,0.00032876,2]
[311826365,1705439458822,-500.0,0.00032876,2]
[311826366,1705439458832,-508.77737895,0.00032876,2]
[311826367,1705439458842,-500.0,0.00032876,2]
[311826368,1705439458852,-500.0,0.00032876,2]
[311826369,1705439458862,-500.0,0.00032876,2]
[311826370,1705439458873,-1419.27,0.00032876,2]
[311826371,1705439458882,-505.52129859,0.00032876,2]
[311826372,1705439458892,-500.0,0.00032876,2]
[311826373,1705439458901,-500.0,0.00032876,2]
[311826374,1705439458912,-1478.31,0.00032876,2]
[311826375,1705439458921,-532.8,0.00032876,2]
[311826376,1705439458931,-889.12,0.00032876,2]
[311826377,1705439458940,-500.0,0.00032876,2]
[311826378,1705439458950,-500.0,0.00032876,2]
[311826379,1705439458960,-500.0,0.00032876,2]
[311826380,1705439458970,-504.69389896,0.00032876,2]
[311826381,1705439458981,-500.0,0.00032876,2]
[311826382,1705439458991,-500.0,0.00032876,2]
[311826383,1705439459002,-1000.0,0.00032876,2]
[311826384,1705439459012,-500.0,0.00032876,2]
[311826385,1705439459021,-500.0,0.00032876,2]
[311826386,1705439459031,-549.47,0.00032876,2]
[311826387,1705439459042,-500.0,0.00032876,2]
[311826388,1705439459051,-500.0,0.00032876,2]
[311826389,1705439459061,-500.0,0.00032876,2]
[311826390,1705439459071,-500.0,0.00032876,2]
[311826391,1705439459080,-1211.79,0.00032876,2]
[311826392,1705439459091,-500.0,0.00032876,2]
[311826393,1705439459102,-500.0,0.00032876,2]
[311826394,1705439459111,-1565.52,0.00032876,2]
[311826395,1705439459121,-500.0,0.00032876,2]
[311826396,1705439459131,-504.91625442,0.00032876,2]
[311826397,1705439459141,-500.0,0.00032876,2]
[311826398,1705439459154,-1364.03,0.00032876,2]
[311826399,1705439459164,-1364.03,0.00032876,2]
[311826400,1705439459174,-500.0,0.00032876,2]
[311826401,1705439459184,-1364.03,0.00032876,2]
[311826402,1705439459195,-500.0,0.00032876,2]
[311826403,1705439459300,-500.0,0.00032876,2]
[311826404,1705439459310,-500.0,0.00032876,2]
[311826405,1705439459319,-500.0,0.00032876,2]
[311826406,1705439459329,-500.0,0.00032876,2]
[311826407,1705439459338,-1364.03,0.00032876,2]
[311826408,1705439459348,-1364.03,0.00032876,2]
[311826409,1705439459357,-523.36117241,0.00032876,2]
[311826410,1705439459366,-500.0,0.00032876,2]
[311826411,1705439459376,-1364.03,0.00032876,2]
[311826412,1705439459386,-500.0,0.00032876,2]
[311826413,1705439459396,-1364.03,0.00032876,2]
[311826414,1705439459405,-1703.84,0.00032876,2]
[311826415,1705439459415,-500.0,0.00032876,2]
[311826416,1705439459425,-500.0,0.00032876,2]
[311826417,1705439459434,-1364.03,0.00032876,2]
[311826418,1705439459444,-500.0,0.00032876,2]
[311826419,1705439459454,-500.0,0.00032876,2]
[311826420,1705439459463,-1364.03,0.00032876,2]
[311826421,1705439459473,-500.0,0.00032876,2]
[311826422,1705439459483,-1364.03,0.00032876,2]
[311826423,1705439459493,-690.44,0.00032876,2]
[311826424,1705439459503,-500.0,0.00032876,2]
[311826425,1705439459517,-500.0,0.00032876,2]
[311826426,1705439459526,-1364.03,0.00032876,2]
[311826427,1705439459536,-500.0,0.00032876,2]
[311826428,1705439459546,-513.55352152,0.00032876,2]
[311826429,1705439459555,-1364.03,0.00032876,2]
[311826430,1705439459566,-1364.03,0.00032876,2]
[311826431,1705439459576,-1364.03,0.00032876,2]
[311826432,1705439459586,-937.79,0.00032876,2]
[311826433,1705439459596,-1364.03,0.00032876,2]
[311826434,1705439459605,-1364.03,0.00032876,2]
[311826435,1705439459616,-500.0,0.00032876,2]
[311826436,1705439459626,-500.0,0.00032876,2]
[311826437,1705439459636,-1364.03,0.00032876,2]
[311826438,1705439459647,-1364.03,0.00032876,2]
[311826439,1705439459656,-1364.03,0.00032876,2]
[311826440,1705439459667,-1364.03,0.00032876,2]
[311826441,1705439459677,-1364.03,0.00032876,2]
[311826442,1705439459688,-1364.03,0.00032876,2]
[311826443,1705439459700,-1364.03,0.00032876,2]
[311826444,1705439459711,-500.0,0.00032876,2]
[311826445,1705439459722,-500.0,0.00032876,2]
[311826446,1705439459732,-1364.07150272,0.00032876,2]
[311826447,1705439459742,-500.0,0.00032876,2]
[311826448,1705439459752,-500.0,0.00032876,2]
[311826449,1705439459762,-500.0,0.00032876,2]
[311826450,1705439459773,-1243.26,0.00032876,2]
[311826451,1705439459783,-1256.89,0.00032876,2]
[311826452,1705439459792,-2106.28,0.00032876,2]
[311826453,1705439459802,-500.0,0.00032876,2]
[311826454,1705439459811,-500.0,0.00032876,2]
[311826455,1705439459821,-500.0,0.00032876,2]
[311826456,1705439459831,-500.0,0.00032876,2]
[311826457,1705439459841,-500.0,0.00032876,2]
[311826458,1705439459851,-500.0,0.00032876,2]
[311826459,1705439459861,-1488.53,0.00032876,2]
[311826460,1705439459872,-500.0,0.00032876,2]
[311826461,1705439459882,-697.37,0.00032876,2]
[311826462,1705439459891,-500.0,0.00032876,2]
[311826463,1705439459902,-506.72928144,0.00032876,2]
[311826464,1705439459911,-713.32,0.00032876,2]
[311826465,1705439459921,-500.0,0.00032876,2]
[311826466,1705439459931,-500.0,0.00032876,2]
[311826467,1705439459941,-500.0,0.00032876,2]
[311826468,1705439459951,-1434.03,0.00032876,2]
[311826469,1705439459962,-1785.1,0.00032876,2]
[311826470,1705439459972,-500.0,0.00032876,2]
[311826471,1705439459984,-500.0,0.00032876,2]
[311826472,1705439459995,-500.0,0.00032876,2]
[311826473,1705439460006,-870.42,0.00032876,2]
[311826474,1705439460016,-1986.35,0.00032876,2]
[311826475,1705439460026,-500.0,0.00032876,2]
[311826476,1705439460036,-500.0,0.00032876,2]
[311826477,1705439460046,-500.0,0.00032876,2]
[311826478,1705439460057,-500.0,0.00032876,2]
[311826479,1705439460068,-500.0,0.00032876,2]
[311826480,1705439460078,-613.97,0.00032876,2]
[311826481,1705439460088,-500.0,0.00032876,2]
[311826482,1705439460097,-500.0,0.00032876,2]
[311826483,1705439460106,-500.0,0.00032876,2]
[311826484,1705439460115,-500.0,0.00032876,2]
[311826485,1705439460124,-500.0,0.00032876,2]
[311826486,1705439460134,-500.0,0.00032876,2]
[311826487,1705439460143,-500.0,0.00032876,2]
[311826488,1705439460154,-500.0,0.00032876,2]
[311826489,1705439460165,-786.46,0.00032876,2]
[311826490,1705439460175,-500.0,0.00032876,2]
[311826491,1705439460184,-500.0,0.00032876,2]
[311826492,1705439460195,-500.0,0.00032876,2]
[311826493,1705439460205,-500.0,0.00032876,2]
[311826494,1705439460215,-500.0,0.00032876,2]
[311826495,1705439460226,-1318.82,0.00032876,2]
[311826496,1705439460237,-500.0,0.00032876,2]
[311826497,1705439460246,-500.0,0.00032876,2]
[311826498,1705439460256,-500.0,0.00032876,2]
[311826499,1705439460266,-965.29,0.00032876,2]
[311826500,1705439460275,-661.09,0.00032876,2]
[311826501,1705439460285,-500.0,0.00032876,2]
[311826502,1705439460295,-500.0,0.00032876,2]
[311826503,1705439460305,-500.0,0.00032876,2]
[311826504,1705439460315,-500.0,0.00032876,2]
[311826505,1705439460324,-500.0,0.00032876,2]
[311826506,1705439460334,-500.0,0.00032876,2]
[311826507,1705439460343,-500.0,0.00032876,2]
[311826508,1705439460352,-500.0,0.00032876,2]
[311826509,1705439460361,-500.0,0.00032876,2]
[311826510,1705439460371,-500.0,0.00032876,2]
[311826511,1705439460380,-500.0,0.00032876,2]
[311826512,1705439460389,-500.0,0.00032876,2]
[311826513,1705439460398,-389.26000002,0.00032876,2]
[311826514,1705439460407,-500.0,0.00032876,2]
[311826515,1705439460416,-500.0,0.00032876,2]
[311826516,1705439460425,-740.38,0.00032876,2]
[311826517,1705439460434,-567.44,0.00032876,2]
[311826518,1705439460444,-1086.9,0.00032876,2]
[311826519,1705439460453,-1477.41,0.00032876,2]
[311826520,1705439460463,-1000.0,0.00032876,2]
[311826521,1705439460473,-1018.45,0.00032876,2]
[311826522,1705439460484,-500.0,0.00032876,2]
[311826523,1705439460494,-500.0,0.00032876,2]
[311826524,1705439460503,-500.0,0.00032876,2]
[311826525,1705439460513,-500.0,0.00032876,2]
[311826526,1705439460522,-587.43797805,0.00032876,2]
[311826527,1705439460532,-500.0,0.00032876,2]
[311826528,1705439460542,-500.0,0.00032876,2]
[311826529,1705439460554,-500.0,0.00032876,2]
[311826530,1705439460563,-893.03,0.00032876,2]
[311826531,1705439460574,-500.0,0.00032876,2]
[311826532,1705439460585,-500.0,0.00032876,2]
[311826533,1705439460596,-500.0,0.00032876,2]
[311826534,1705439460605,-500.0,0.00032876,2]
[311826535,1705439460615,-500.0,0.00032876,2]
[311826536,1705439460626,-500.0,0.00032876,2]
[311826537,1705439460635,-500.0,0.00032876,2]
[311826538,1705439460644,-500.0,0.00032876,2]
[311826539,1705439460655,-502.38231789,0.00032876,2]
[311826540,1705439460664,-500.0,0.00032876,2]
[311826541,1705439460674,-500.0,0.00032876,2]
[311826542,1705439460684,-500.0,0.00032876,2]
[311826543,1705439460692,-500.0,0.00032876,2]
[311826544,1705439460702,-500.0,0.00032876,2]
[311826545,1705439460713,-644.05573524,0.00032876,2]
[311826546,1705439460722,-742.54,0.00032876,2]
[311826547,1705439460732,-502.79706462,0.00032876,2]
[311826548,1705439460741,-753.96,0.00032876,2]
[311826549,1705439460750,-500.0,0.00032876,2]
[311826550,1705439460760,-500.0,0.00032876,2]
[311826551,1705439460770,-500.0,0.00032876,2]
[311826552,1705439460780,-500.0,0.00032876,2]
[311826553,1705439460790,-1404.93,0.00032876,2]
[311826554,1705439460801,-500.0,0.00032876,2]
[311826555,1705439460811,-500.0,0.00032876,2]
[311826556,1705439460821,-723.47,0.00032876,2]
[311826557,1705439460833,-500.0,0.00032876,2]
[311826558,1705439460843,-559.81563275,0.00032876,2]
[311826559,1705439460853,-500.0,0.00032876,2]
[311826560,1705439460862,-1308.38,0.00032876,2]
[311826561,1705439460872,-500.0,0.00032876,2]
[311826562,1705439460881,-1308.38,0.00032876,2]
[311826563,1705439460890,-730.05,0.00032876,2]
[311826564,1705439460900,-1308.38,0.00032876,2]
[311826565,1705439460909,-500.0,0.00032876,2]
[311826566,1705439460918,-1308.38,0.00032876,2]
[311826567,1705439460929,-506.05231486,0.00032876,2]
[311826568,1705439460938,-1308.38,0.00032876,2]
[311826569,1705439460947,-612.25,0.00032876,2]
[311826570,1705439460956,-1308.38,0.00032876,2]
[311826571,1705439460965,-1308.38,0.00032876,2]
[311826572,1705439460974,-1308.38,0.00032876,2]
[311826573,1705439460983,-1308.38,0.00032876,2]
[311826574,1705439460993,-1308.38,0.00032876,2]
[311826575,1705439461002,-1308.38,0.00032876,2]
[311826576,1705439461012,-1308.38,0.00032876,2]
[311826577,1705439461022,-637.93,0.00032876,2]
[311826578,1705439461033,-500.0,0.00032876,2]
[311826579,1705439461043,-1308.38,0.00032876,2]
[311826580,1705439461053,-500.0,0.00032876,2]
[311826581,1705439461063,-1038.64,0.00032876,2]
[311826582,1705439461072,-1308.38,0.00032876,2]
[311826583,1705439461082,-1308.38,0.00032876,2]
[311826584,1705439461092,-500.0,0.00032876,2]
[311826585,1705439461103,-564.29,0.00032876,2]
[311826586,1705439461114,-1308.38,0.00032876,2]
[311826587,1705439461123,-1220.45,0.00032876,2]
[311826588,1705439461133,-1576.91,0.00032876,2]
[311826589,1705439461144,-1308.38,0.00032876,2]
[311826590,1705439461155,-1170.58,0.00032876,7]
[311826591,1705439461165,-1308.38,0.00032876,2]
[311826592,1705439461175,-1308.38,0.00032876,2]
[311826593,1705439461184,-544.17160103,0.00032876,2]
[311826594,1705439461194,-1308.38,0.00032876,2]
[311826595,1705439461205,-1308.38,0.00032876,2]
[311826596,1705439461214,-1308.38,0.00032876,2]
[311826597,1705439461224,-500.0,0.00032876,2]
[311826598,1705439461235,-1308.38,0.00032876,2]
[311826599,1705439461245,-1308.52,0.00032876,2]
[311826600,1705439461254,-500.0,0.00032876,2]
[311826601,1705439461263,-1395.19,0.00032876,2]
[311826602,1705439461273,-507.48969044,0.00032876,2]
[311826603,1705439461283,-1340.82,0.00032876,2]
[311826604,1705439461292,-506.86147591,0.00032876,2]
[311826605,1705439461302,-500.0,0.00032876,2]
[311826606,1705439461312,-993.61,0.00032876,2]
[311826607,1705439461322,-500.0,0.00032876,2]
[311826608,1705439461332,-692.93,0.00032876,2]
[311826609,1705439461341,-500.0,0.00032876,2]
[311826610,1705439461350,-1247.5,0.00032876,2]
[311826611,1705439461359,-500.0,0.00032876,2]
[311826612,1705439461368,-868.59,0.00032876,2]
[311826613,1705439461377,-500.0,0.00032876,2]
[311826614,1705439461387,-1044.75,0.00032876,2]
[311826615,1705439461395,-500.0,0.00032876,2]
[311826616,1705439461405,-500.0,0.00032876,2]
[311826617,1705439461414,-500.0,0.00032876,2]
[311826618,1705439461423,-500.0,0.00032876,2]
[311826619,1705439461432,-500.0,0.00032876,2]
[311826620,1705439461441,-500.0,0.00032876,2]
[311826621,1705439461450,-500.0,0.00032876,2]
[311826622,1705439461459,-500.0,0.00032876,2]
[311826623,1705439461468,-500.0,0.00032876,2]
[311826624,1705439461478,-500.0,0.00032876,2]
[311826625,1705439461487,-500.0,0.00032876,2]
[311826626,1705439461496,-500.0,0.00032876,2]
[311826627,1705439461505,-1244.97,0.00032876,2]
[311826628,1705439461514,-500.0,0.00032876,2]
[311826629,1705439461522,-500.0,0.00032876,2]
[311826630,1705439461531,-500.0,0.00032876,2]
[311826631,1705439461540,-511.32892884,0.00032876,2]
[311826632,1705439461549,-500.0,0.00032876,2]
[311826633,1705439461559,-1367.52,0.00032876,7]
[311826634,1705439461568,-500.0,0.00032876,2]
[311826635,1705439461577,-1210.0,0.00032876,2]
[311826636,1705439461586,-500.0,0.00032876,2]
[311826637,1705439461595,-500.0,0.00032876,2]
[311826638,1705439461604,-500.0,0.00032876,2]
[311826639,1705439461613,-727.12,0.00032876,2]
[311826640,1705439461623,-500.0,0.00032876,2]
[311826641,1705439461632,-787.6,0.00032876,2]
[311826642,1705439461641,-500.0,0.00032876,2]
[311826643,1705439461650,-500.0,0.00032876,2]
[311826644,1705439461658,-1020.17,0.00032876,2]
[311826645,1705439461667,-672.64,0.00032876,2]
[311826646,1705439461677,-975.73,0.00032876,2]
[311826647,1705439461686,-220.15360332,0.00032876,2]
[311826648,1705439461695,-699.17,0.00032876,2]
[311826649,1705439461703,-500.0,0.00032876,2]
[311826650,1705439461712,-620.51,0.00032876,2]
[311826651,1705439461721,-500.0,0.00032876,2]
[311826652,1705439461730,-500.0,0.00032876,2]
[311826653,1705439461738,-500.0,0.00032876,2]
[311826654,1705439461747,-500.0,0.00032876,2]
[311826655,1705439461756,-1800.63,0.00032876,2]
[311826656,1705439461765,-255.57504048,0.00032876,2]
[311826657,1705439461774,-500.0,0.00032876,2]
[311826658,1705439461784,-506.81940834,0.00032876,2]
[311826659,1705439461794,-500.0,0.00032876,2]
[311826660,1705439461803,-2327.72,0.00032876,2]
[311826661,1705439461812,-501.83230682,0.00032876,2]
[311826662,1705439461821,-500.0,0.00032876,2]
[311826663,1705439461830,-1529.17,0.00032876,2]
[311826664,1705439461840,-500.0,0.00032876,2]
[311826665,1705439461849,-500.0,0.00032876,2]
[311826666,1705439461860,-500.0,0.00032876,2]
[311826667,1705439461870,-844.64,0.00032876,2]
[311826668,1705439461879,-500.0,0.00032876,2]
[311826669,1705439461889,-500.0,0.00032876,2]
[311826670,1705439461898,-361.66884963,0.00032876,2]
[311826671,1705439461909,-500.0,0.00032876,2]
[311826672,1705439461918,-500.0,0.00032876,2]
[311826673,1705439461929,-500.0,0.00032876,2]
[311826674,1705439461939,-620.99,0.00032876,2]
[311826675,1705439461950,-776.57,0.00032876,2]
[311826676,1705439461961,-500.0,0.00032876,2]
[311826677,1705439461971,-500.0,0.00032876,2]
[311826678,1705439461982,-500.0,0.00032876,2]
[311826679,1705439461993,-500.0,0.00032876,2]
[311826680,1705439462002,-500.0,0.00032876,2]
[311826681,1705439462012,-500.0,0.00032876,2]
[311826682,1705439462021,-1039.95,0.00032876,2]
[311826683,1705439462031,-500.0,0.00032876,2]
[311826684,1705439462042,-1389.4,0.00032876,2]
[311826685,1705439462053,-1528.39,0.00032876,2]
[311826686,1705439462063,-500.0,0.00032876,2]
[311826687,1705439462073,-500.0,0.00032876,2]
[311826688,1705439462082,-500.0,0.00032876,2]
[311826689,1705439462092,-500.0,0.00032876,2]
[311826690,1705439462103,-500.0,0.00032876,2]
[311826691,1705439462112,-500.0,0.00032876,2]
[311826692,1705439462121,-721.73,0.00032876,2]
[311826693,1705439462131,-500.0,0.00032876,2]
[311826694,1705439462141,-500.0,0.00032876,2]
[311826695,1705439462154,-500.0,0.00032876,2]
[311826696,1705439462169,-500.0,0.00032876,2]
[311826697,1705439462179,-500.0,0.00032876,2]
[311826698,1705439462189,-500.0,0.00032876,2]
[311826699,1705439462200,-858.47,0.00032876,2]
[311826700,1705439462210,-500.0,0.00032876,2]
[311826701,1705439462219,-500.0,0.00032876,2]
[311826702,1705439462231,-1292.74,0.00032876,2]
[311826703,1705439462241,-500.0,0.00032876,2]
[311826704,1705439462251,-500.0,0.00032876,2]
[311826705,1705439462261,-500.0,0.00032876,2]
[311826706,1705439462271,-918.64,0.00032876,2]
[311826707,1705439462282,-1575.37,0.00032876,2]
[311826708,1705439462293,-800.83,0.00032876,2]
[311826709,1705439462304,-668.99,0.00032876,2]
[311826710,1705439462313,-649.45,0.00032876,2]
[311826711,1705439462324,-500.0,0.00032876,2]
[311826712,1705439462333,-500.0,0.00032876,2]
[311826713,1705439462343,-607.46,0.00032876,2]
[311826714,1705439462352,-500.0,0.00032876,2]
[311826715,1705439462362,-1589.63,0.00032876,2]
[311826716,1705439462372,-500.0,0.00032876,2]
[311826717,1705439462381,-500.0,0.00032876,2]
[311826718,1705439462391,-500.0,0.00032876,2]
[311826719,1705439462403,-596.26,0.00032876,2]
[311826720,1705439462412,-500.0,0.00032876,2]
[311826721,1705439462422,-500.0,0.00032876,2]
[311826722,1705439462431,-1262.66,0.00032876,2]
[311826723,1705439462441,-714.7,0.00032876,2]
[311826724,1705439462450,-507.06,0.00032876,2]
[311826725,1705439462459,-571.99541835,0.00032876,2]
[311826726,1705439462468,-500.0,0.00032876,2]
[311826727,1705439462481,-500.0,0.00032876,2]
[311826728,1705439462492,-500.0,0.00032876,2]
[311826729,1705439462502,-500.0,0.00032876,2]
[311826730,1705439462514,-500.0,0.00032876,2]
[311826731,1705439462524,-1222.79,0.00032876,2]
[311826732,1705439462534,-1097.95,0.00032876,2]
[311826733,1705439462545,-500.0,0.00032876,2]
[311826734,1705439462556,-500.0,0.00032876,2]
[311826735,1705439462567,-294.04664594,0.00032876,2]
[311826736,1705439462577,-500.0,0.00032876,2]
[311826737,1705439462587,-500.0,0.00032876,2]
[311826738,1705439462597,-500.0,0.00032876,2]
[311826739,1705439462606,-500.0,0.00032876,2]
[311826740,1705439462616,-1497.83,0.00032876,2]
[311826741,1705439462626,-500.0,0.00032876,2]
[311826742,1705439462635,-500.0,0.00032876,2]
[311826743,1705439462645,-500.0,0.00032876,2]
[311826744,1705439462655,-500.0,0.00032876,2]
[311826745,1705439462666,-500.0,0.00032876,2]
[311826746,1705439462676,-500.0,0.00032876,2]
[311826747,1705439462685,-500.0,0.00032876,2]
[311826748,1705439462696,-1356.16,0.00032876,2]
[311826749,1705439462706,-1050.01,0.00032876,2]
[311826750,1705439462716,-500.0,0.00032876,2]
[311826751,1705439462726,-500.0,0.00032876,2]
[311826752,1705439462737,-500.0,0.00032876,2]
[311826753,1705439462747,-2432.57,0.00032876,2]
[311826754,1705439462757,-500.0,0.00032876,2]
[311826755,1705439462768,-500.0,0.00032876,2]
[311826756,1705439462777,-500.0,0.00032876,2]
[311826757,1705439462787,-500.0,0.00032876,2]
[311826758,1705439462797,-500.0,0.00032876,2]
[311826759,1705439462808,-894.76,0.00032876,2]
[311826760,1705439462818,-500.0,0.00032876,2]
[311826761,1705439462829,-500.0,0.00032876,2]
[311826762,1705439462841,-1276.61,0.00032876,2]
[311826763,1705439462852,-500.0,0.00032876,2]
[311826764,1705439462864,-986.96,0.00032876,2]
[311826765,1705439462875,-1587.26,0.00032876,2]
[311826766,1705439462885,-681.52,0.00032876,2]
[311826767,1705439462896,-500.0,0.00032876,2]
[311826768,1705439462906,-500.0,0.00032876,2]
[311826769,1705439462916,-500.0,0.00032876,2]
[311826770,1705439462926,-500.0,0.00032876,2]
[311826771,1705439462936,-500.0,0.00032876,2]
[311826772,1705439462946,-1485.68,0.00032876,2]
[311826773,1705439462956,-1046.28,0.00032876,2]
[311826774,1705439462966,-1514.12,0.00032876,2]
[311826775,1705439462977,-500.0,0.00032876,7]
[311826776,1705439462987,-390.89751115,0.00032876,7]
[311826777,1705439462996,-507.43141442,0.00032876,7]
[311826778,1705439463006,-232.62544078,0.00032876,7]
[311826779,1705439463015,-500.0,0.00032876,7]
[311826780,1705439463026,-500.0,0.00032876,7]
[311826781,1705439463036,-500.0,0.00032876,7]
[311826782,1705439463046,-500.0,0.00032876,7]
[311826783,1705439463057,-500.0,0.00032876,7]
[311826784,1705439463067,-500.0,0.00032876,7]
[311826785,1705439463076,-500.0,0.00032876,7]
[311826786,1705439463086,-500.0,0.00032876,7]
[311826787,1705439463095,-500.0,0.00032876,7]
[311826788,1705439463105,-500.0,0.00032876,7]
[311826789,1705439463114,-500.0,0.00032876,7]
[311826790,1705439463124,-500.0,0.00032876,2]
[311826791,1705439463133,-500.0,0.00032876,7]
[311826792,1705439463143,-622.79,0.00032876,2]
[311826793,1705439463156,-500.0,0.00032876,2]
[311826794,1705439463166,-271.1038574,0.00032876,2]
[311826795,1705439463175,-973.56,0.00032876,2]
[311826796,1705439463185,-500.0,0.00032876,2]
[311826797,1705439463195,-500.0,0.00032876,2]
[311826798,1705439463204,-504.76,0.00032876,2]
[311826799,1705439463214,-500.0,0.00032876,2]
[311826800,1705439463224,-500.0,0.00032876,2]
[311826801,1705439463235,-1354.44,0.00032876,2]
[311826802,1705439463245,-500.0,0.00032876,2]